fUSD/lending_fUSD_20251223
["ID","MTS","AMOUNT","RATE_DAILY","PERIOD"]
[399585342,1766524275621,-259.078337,0.00032877,31]
[399585343,1766524275630,-217.324789,0.00032877,31]
[399585344,1766524275640,-219.089255,0.00032877,31]
[399585345,1766524275650,-259.078337,0.00032877,31]
[399585346,1766524275660,-219.089255,0.00032877,31]
[399585347,1766524275669,-217.324789,0.00032877,31]
[399585348,1766524275679,-259.078337,0.00032877,31]
[399585349,1766524275689,-217.324789,0.00032877,31]
[399585350,1766524275698,-219.089255,0.00032877,31]
[399585351,1766524275708,-219.089255,0.00032877,31]
[399585352,1766524275718,-151.0,0.00032877,31]
[399585353,1766524275727,-168.734994,0.00032877,31]
[399585354,1766524275737,-151.0,0.00032877,31]
[399585355,1766524275747,-151.0,0.00032877,31]
[399585356,1766524275757,-151.0,0.00032877,31]
[399585357,1766524275767,-151.0,0.00032877,31]
[399585358,1766524275777,-151.0,0.00032877,31]
[399585359,1766524275786,-151.0,0.00032877,31]
[399585360,1766524275796,-266.972657,0.00032877,31]
[399585361,1766524275805,-266.972657,0.00032877,31]
[399585362,1766524275815,-151.0,0.00032877,31]
[399585363,1766524275824,-204.517954,0.00032877,31]
[399585364,1766524275834,-266.972657,0.00032877,31]
[399585365,1766524275844,-266.972657,0.00032877,31]
[399585366,1766524275854,-266.972657,0.00032877,31]
[399585367,1766524275863,-266.972657,0.00032877,31]
[399585368,1766524275873,-266.972657,0.00032877,31]
[399585369,1766524275883,-266.972657,0.00032877,31]
[399585370,1766524275893,-174.989646,0.00032877,31]
[399585371,1766524275903,-174.989646,0.00032877,31]
[399585372,1766524275914,-1774.770651,0.00032877,31]
[399585373,1766524275923,-205.807978,0.00032877,31]
[399585374,1766524275933,-1774.770651,0.00032877,31]
[399585375,1766524275943,-205.807978,0.00032877,31]
[399585376,1766524275954,-174.989646,0.00032877,31]
[399585377,1766524275964,-174.989646,0.00032877,31]
[399585378,1766524275974,-1774.770651,0.00032877,31]
[399585379,1766524275983,-205.807978,0.00032877,31]
[399585380,1766524275993,-1774.770651,0.00032877,31]
[399585381,1766524276003,-205.807978,0.00032877,31]
[399585382,1766524276012,-174.989646,0.00032877,31]
[399585383,1766524276021,-174.989646,0.00032877,31]
[399585384,1766524276031,-1774.770651,0.00032877,31]
[399585385,1766524276040,-205.807978,0.00032877,31]
[399585386,1766524276050,-1774.770651,0.00032877,31]
[399585387,1766524276061,-205.807978,0.00032877,31]
[399585388,1766524276071,-174.989646,0.00032877,31]
[399585389,1766524276081,-174.989646,0.00032877,31]
[399585390,1766524276092,-1774.770651,0.00032877,31]
[399585391,1766524276102,-205.807978,0.00032877,31]
[399585392,1766524276113,-1774.770651,0.00032877,31]
[399585393,1766524276123,-205.807978,0.00032877,31]
[399585394,1766524276132,-151.0,0.00032877,31]
[399585395,1766524276143,-151.0,0.00032877,31]
[399585396,1766524276152,-391.526126,0.00032877,31]
[399585397,1766524276162,-391.526126,0.00032877,31]
[399585398,1766524276171,-391.526126,0.00032877,31]
[399585399,1766524276181,-391.526126,0.00032877,31]
[399585400,1766524276190,-151.0,0.00032877,31]
[399585401,1766524276200,-151.0,0.00032877,31]
[399585402,1766524276210,-151.0,0.00032877,31]
[399585403,1766524276219,-222.317636,0.00032877,31]
[399585404,1766524276229,-151.0,0.00032877,31]
[399585405,1766524276238,-222.317636,0.00032877,31]
[399585406,1766524276247,-222.317636,0.00032877,31]
[399585407,1766524276257,-222.317636,0.00032877,31]
[399585408,1766524276267,-1292.203986,0.00032877,31]
[399585409,1766524276278,-1292.203986,0.00032877,31]
[399585410,1766524276288,-222.317636,0.00032877,31]
[399585411,1766524276298,-222.317636,0.00032877,31]
[399585412,1766524276308,-1292.203986,0.00032877,31]
[399585413,1766524276319,-222.317636,0.00032877,31]
[399585414,1766524276329,-1292.203986,0.00032877,31]
[399585415,1766524276339,-222.317636,0.00032877,31]
[399585416,1766524276349,-1292.203986,0.00032877,31]
[399585417,1766524276358,-579.910514,0.00032877,31]
[399585418,1766524276369,-579.910514,0.00032877,31]
[399585419,1766524276384,-1292.203986,0.00032877,31]
[399585420,1766524276394,-391.526126,0.00032877,31]
[399585421,1766524276404,-579.910514,0.00032877,31]
[399585422,1766524276415,-1292.203986,0.00032877,31]
[399585423,1766524276425,-391.526126,0.00032877,31]
[399585424,1766524276435,-579.910514,0.00032877,31]
[399585425,1766524276445,-1292.203986,0.00032877,31]
[399585426,1766524276455,-198.866525,0.00032877,31]
[399585427,1766524276465,-198.866525,0.00032877,31]
[399585428,1766524276475,-579.910514,0.00032877,31]
[399585429,1766524276486,-579.910514,0.00032877,31]
[399585430,1766524276496,-198.866525,0.00032877,31]
[399585431,1766524276505,-198.866525,0.00032877,31]
[399585432,1766524276515,-579.910514,0.00032877,31]
[399585433,1766524276526,-579.910514,0.00032877,31]
[399585434,1766524276535,-198.866525,0.00032877,31]
[399585435,1766524276545,-184.764818,0.00032877,31]
[399585436,1766524276554,-198.866525,0.00032877,31]
[399585437,1766524276564,-184.764818,0.00032877,31]
[399585438,1766524276573,-198.866525,0.00032877,31]
[399585439,1766524276583,-184.764818,0.00032877,31]
[399585440,1766524276593,-198.866525,0.00032877,31]
[399585441,1766524276603,-184.764818,0.00032877,31]
[399585442,1766524276613,-184.764818,0.00032877,31]
[399585443,1766524276624,-184.764818,0.00032877,31]
[399585444,1766524276634,-260.675791,0.00032877,31]
[399585445,1766524276644,-260.675791,0.00032877,31]
[399585446,1766524276655,-184.764818,0.00032877,31]
[399585447,1766524276665,-184.764818,0.00032877,31]
[399585448,1766524276675,-260.675791,0.00032877,31]
[399585449,1766524276685,-260.675791,0.00032877,31]
[399585450,1766524276695,-260.675791,0.00032877,31]
[399585451,1766524276705,-260.675791,0.00032877,31]
[399585452,1766524276716,-391.526126,0.00032877,31]
[399585453,1766524276727,-391.526126,0.00032877,31]
[399585454,1766524276736,-260.675791,0.00032877,31]
[399585455,1766524276746,-260.675791,0.00032877,31]
[399585456,1766524276756,-222.985185,0.00032877,31]
[399585457,1766524276765,-222.985185,0.00032877,31]
[399585458,1766524276776,-151.0,0.00032877,31]
[399585459,1766524276786,-151.0,0.00032877,31]
[399585460,1766524276796,-222.985185,0.00032877,31]
[399585461,1766524276806,-222.985185,0.00032877,31]
[399585462,1766524276816,-222.985185,0.00032877,31]
[399585463,1766524276827,-222.985185,0.00032877,31]
[399585464,1766524276837,-151.0,0.00032877,31]
[399585465,1766524276847,-151.0,0.00032877,31]
[399585466,1766524276857,-222.985185,0.00032877,31]
[399585467,1766524276868,-222.985185,0.00032877,31]
[399585468,1766524276878,-151.0,0.00032877,31]
[399585469,1766524276888,-151.0,0.00032877,31]
[399585470,1766524276898,-893.533409,0.00032877,31]
[399585471,1766524276909,-151.0,0.00032877,31]
[399585472,1766524276919,-893.533409,0.00032877,31]
[399585473,1766524276929,-151.0,0.00032877,31]
[399585474,1766524276939,-151.0,0.00032877,31]
[399585475,1766524276949,-893.533409,0.00032877,31]
[399585476,1766524276959,-151.0,0.00032877,31]
[399585477,1766524276969,-893.533409,0.00032877,31]
[399585478,1766524276979,-151.0,0.00032877,31]
[399585479,1766524276989,-151.0,0.00032877,31]
[399585480,1766524276999,-151.0,0.00032877,31]
[399585481,1766524277009,-151.0,0.00032877,31]
[399585482,1766524277019,-893.533409,0.00032877,31]
[399585483,1766524277029,-893.533409,0.00032877,31]
[399585484,1766524277039,-151.0,0.00032877,31]
[399585485,1766524277049,-151.0,0.00032877,31]
[399585486,1766524277059,-893.533409,0.00032877,31]
[399585487,1766524277070,-893.533409,0.00032877,31]
[399585488,1766524277079,-151.0,0.00032877,31]
[399585489,1766524277089,-747.082718,0.00032877,31]
[399585490,1766524277099,-151.0,0.00032877,31]
[399585491,1766524277109,-151.0,0.00032877,31]
[399585492,1766524277119,-747.082718,0.00032877,31]
[399585493,1766524277129,-151.0,0.00032877,31]
[399585494,1766524277139,-151.0,0.00032877,31]
[399585495,1766524277148,-747.082718,0.00032877,31]
[399585496,1766524277158,-747.082718,0.00032877,31]
[399585497,1766524277168,-181.158444,0.00032877,31]
[399585498,1766524277178,-151.0,0.00032877,31]
[399585499,1766524277188,-747.082718,0.00032877,31]
[399585500,1766524277197,-747.082718,0.00032877,31]
[399585501,1766524277207,-151.0,0.00032877,31]
[399585502,1766524277218,-747.082718,0.00032877,31]
[399585503,1766524277227,-747.082718,0.00032877,31]
[399585504,1766524277237,-151.0,0.00032877,31]
[399585505,1766524277246,-183.161106,0.00032877,31]
[399585506,1766524277256,-265.459658,0.00032877,31]
[399585507,1766524277266,-151.0,0.00032877,31]
[399585508,1766524277275,-151.0,0.00032877,31]
[399585509,1766524277285,-151.0,0.00032877,31]
[399585510,1766524277295,-151.0,0.00032877,31]
[399585511,1766524277305,-151.0,0.00032877,31]
[399585512,1766524277314,-265.459658,0.00032877,31]
[399585513,1766524277324,-151.0,0.00032877,31]
[399585514,1766524277333,-157.365133,0.00032877,31]
[399585515,1766524277343,-151.0,0.00032877,31]
[399585516,1766524277352,-151.0,0.00032877,31]
[399585517,1766524277362,-151.0,0.00032877,31]
[399585518,1766524277371,-265.459658,0.00032877,31]
[399585519,1766524277384,-151.0,0.00032877,31]
[399585520,1766524277394,-151.0,0.00032877,31]
[399585521,1766524277402,-151.0,0.00032877,31]
[399585522,1766524277411,-151.0,0.00032877,31]
[399585523,1766524277422,-151.0,0.00032877,31]
[399585524,1766524277433,-265.459658,0.00032877,31]
[399585525,1766524277442,-151.0,0.00032877,31]
[399585526,1766524277452,-151.0,0.00032877,31]
[399585527,1766524277462,-221.978013,0.00032877,31]
[399585528,1766524277472,-151.0,0.00032877,31]
[399585529,1766524277482,-276.760126,0.00032877,31]
[399585530,1766524277493,-151.0,0.00032877,31]
[399585531,1766524277503,-151.0,0.00032877,31]
[399585532,1766524277512,-151.0,0.00032877,31]
[399585533,1766524277523,-174.063089,0.00032877,31]
[399585534,1766524277533,-276.760126,0.00032877,31]
[399585535,1766524277544,-151.0,0.00032877,31]
[399585536,1766524277554,-151.0,0.00032877,31]
[399585537,1766524277564,-151.0,0.00032877,31]
[399585538,1766524277574,-276.760126,0.00032877,31]
[399585539,1766524277583,-174.317169,0.00032877,31]
[399585540,1766524277594,-1988.226032,0.00032877,31]
[399585541,1766524277604,-1988.226032,0.00032877,31]
[399585542,1766524277614,-151.0,0.00032877,7]
[399585543,1766524277624,-151.0,0.00032877,31]
[399585544,1766524277634,-151.0,0.00032877,7]
[399585545,1766524277644,-276.760126,0.00032877,31]
[399585546,1766524277654,-151.0,0.00032877,31]
[399585547,1766524277665,-1988.226032,0.00032877,31]
[399585548,1766524277674,-1988.226032,0.00032877,31]
[399585549,1766524277684,-151.0,0.00032877,31]
[399585550,1766524277694,-151.0,0.00032877,7]
[399585551,1766524277703,-151.0,0.00032877,31]
[399585552,1766524277713,-151.0,0.00032877,7]
[399585553,1766524277723,-151.0,0.00032877,31]
[399585554,1766524277732,-151.0,0.00032877,31]
[399585555,1766524277742,-1988.226032,0.00032877,31]
[399585556,1766524277752,-1988.226032,0.00032877,31]
[399585557,1766524277762,-151.0,0.00032877,7]
[399585558,1766524277772,-151.0,0.00032877,31]
[399585559,1766524277782,-157.31902595,0.00032877,7]
[399585560,1766524277791,-169.73555856,0.00032877,7]
[399585561,1766524277801,-151.0,0.00032877,31]
[399585562,1766524277811,-1988.226032,0.00032877,31]
[399585563,1766524277822,-1988.226032,0.00032877,31]
[399585564,1766524277832,-559.268068,0.00032877,31]
[399585565,1766524277842,-763.897768,0.00032877,31]
[399585566,1766524277853,-151.0,0.00032877,31]
[399585567,1766524277863,-300.0,0.00032899,10]
[399585568,1766524277874,-311.05061399,0.00032899,10]
[399585569,1766524277884,-232.87,0.000329,14]
[399585570,1766524277894,-351.31,0.000329,14]
[399585571,1766524277904,-7920.67,0.000329,2]
[399585572,1766524277914,-151.0,0.000329,31]
[399585573,1766524277923,-151.0,0.000329,31]
[399585574,1766524277934,-151.0,0.000329,31]
[399585575,1766524277944,-265.459658,0.000329,31]
[399585576,1766524277954,-265.459658,0.000329,31]
[399585577,1766524277964,-265.459658,0.000329,31]
[399585578,1766524277974,-151.0,0.000329,31]
[399585579,1766524277985,-265.459658,0.000329,31]
[399585580,1766524277995,-151.0,0.000329,31]
[399585581,1766524278006,-151.0,0.000329,31]
[399585582,1766524278016,-276.760126,0.000329,31]
[399585583,1766524278027,-151.0,0.000329,31]
[399585584,1766524278038,-151.0,0.000329,31]
[399585585,1766524278047,-276.760126,0.000329,31]
[399585586,1766524278056,-151.0,0.000329,31]
[399585587,1766524278066,-276.760126,0.000329,31]
[399585588,1766524278076,-276.760126,0.000329,31]
[399585589,1766524278086,-151.0,0.000329,31]
[399585590,1766524278097,-151.0,0.000329,31]
[399585591,1766524278107,-151.0,0.000329,31]
[399585592,1766524278118,-151.0,0.000329,31]
[399585593,1766524278129,-559.268068,0.000329,31]
[399585594,1766524278139,-763.897768,0.000329,31]
[399585595,1766524278149,-150.0,0.00032904,2]
[399585596,1766524278158,-300.0,0.00032931,10]
[399585597,1766524278168,-200.0,0.00032932,2]
[399585598,1766524278178,-300.0,0.00032999,10]
[399585599,1766524278188,-152.63531938,0.00033,2]
[399585600,1766524278198,-250.0,0.00033,30]
[399585601,1766524278207,-250.0,0.00033,30]
[399585602,1766524278218,-208.82777652,0.00033,120]
[399585603,1766524278228,-150.0,0.00033,14]
[399585604,1766524278238,-150.0,0.00033013,120]
[399585605,1766524278248,-150.0,0.0003315,120]
[399585606,1766524278258,-300.0,0.00033164,10]
[399585607,1766524278268,-470.73,0.00033165,2]
[399585608,1766524278279,-300.0,0.00033199,10]
[399585609,1766524278292,-1020.62,0.000332,30]
[399585610,1766524278302,-300.0,0.00033225,10]
[399585611,1766524278311,-150.0,0.00033287,120]
[399585612,1766524278321,-7920.67,0.000333,2]
[399585613,1766524278331,-150.0,0.00033424,120]
[399585614,1766524278341,-152.0,0.00033472,6]
[399585615,1766524278351,-194.24882064,0.00033561,120]
[399585616,1766524278361,-403.81516004,0.00033629,2]
[399585617,1766524278371,-13612.10153334,0.00033639,2]
[399585618,1766524278383,-170.73,0.00033699,2]
[399585619,1766524278393,-7920.67,0.000337,2]
[399585620,1766524278402,-17943.09,0.000337,14]
[399585621,1766524278412,-1000.0,0.00034,11]
[399585622,1766524278422,-325.05409751,0.00034,2]
[399585623,1766524278432,-300.0,0.00034,2]
[399585624,1766524278442,-304.0,0.00034,7]
[399585625,1766524278452,-250.0,0.00034,30]
[399585626,1766524278462,-250.0,0.00034,30]
[399585627,1766524278472,-469.41,0.00034,30]
[399585628,1766524278482,-177.28324738,0.00034,30]
[399585629,1766524278492,-6984.49767453,0.00034,10]
[399585630,1766524279415,-497.83825787,0.00034,10]
[399585631,1766524279425,-1118.4173,0.00034142,2]
[399585632,1766524279435,-351.31,0.000342,14]
[399585633,1766524279445,-966.99486017,0.000342,30]
[399585634,1766524279458,-53.62513983,0.000342,30]
[399585635,1766524279468,-1152.0,0.000342,14]
[399585636,1766524279479,-315.37,0.00034246,30]
[399585637,1766524279489,-7920.67,0.000343,2]
[399585638,1766524279498,-174.62784435,0.00034459,7]
[399585639,1766524279508,-554.09,0.00034521,2]
[399585640,1766524279518,-301.19,0.00034521,2]
[399585641,1766524279529,-2439.7,0.00034521,2]
[399585642,1766524279539,-1219.85,0.00034521,2]
[399585643,1766524279549,-1219.85,0.00034521,2]
[399585644,1766524279558,-1219.85,0.00034521,2]
[399585645,1766524279569,-1219.85,0.00034521,2]
[399585646,1766524279580,-2439.7,0.00034521,2]
[399585647,1766524279591,-417.59398557,0.0003488,120]
[399585648,1766524279602,-150.0,0.00034915,7]
[399585649,1766524279613,-150.0,0.00034915,7]
[399585650,1766524279623,-150.0,0.00034915,7]
[399585651,1766524279634,-150.0,0.00034915,7]
[399585652,1766524279643,-151.93318278,0.00034915,7]
[399585653,1766524279654,-150.0,0.00034915,7]
[399585654,1766524279664,-150.0,0.00034915,7]
[399585655,1766524279674,-150.0,0.00034915,7]
[399585656,1766524279684,-150.0,0.00034915,7]
[399585657,1766524279694,-150.0,0.00034915,7]
[399585658,1766524279704,-150.0,0.00034915,7]
[399585659,1766524279714,-150.0,0.00034915,7]
[399585660,1766524279726,-150.0,0.00034915,7]
[399585661,1766524279735,-150.0,0.00034915,7]
[399585662,1766524279746,-150.0,0.00034915,7]
[399585663,1766524279756,-151.0662915,0.00034915,7]
[399585664,1766524279765,-150.0,0.00034915,7]
[399585665,1766524279775,-315.37,0.00034931,31]
[399585666,1766524279785,-397.27,0.00034938,30]
[399585667,1766524279795,-238.20044897,0.00034954,2]
[399585668,1766524279805,-150.0,0.00034986,7]
[399585669,1766524279815,-150.0,0.00034987,7]
[399585670,1766524279824,-250.0,0.00035,30]
[399585671,1766524279835,-250.0,0.00035,30]
[399585672,1766524279845,-7920.67,0.00035,2]
[399585673,1766524279855,-150.0,0.00035,2]
[399585674,1766524279864,-150.0,0.00035001,7]
[399585675,1766524279874,-152.0,0.00035026,7]
[399585676,1766524279884,-93.28702172,0.00035036,7]
[399585677,1766524279903,-56.71297828,0.00035036,7]
[399585678,1766524279913,-150.0,0.00035054,7]
[399585679,1766524279923,-150.0,0.00035056,7]
[399585680,1766524279933,-150.0,0.00035059,7]
[399585681,1766524279943,-150.0,0.00035059,7]
[399585682,1766524279953,-150.0,0.00035087,7]
[399585683,1766524279964,-150.0,0.00035127,7]
[399585684,1766524279974,-150.0,0.00035131,7]
[399585685,1766524279983,-53.81287318,0.00035158,7]
[399585686,1766524279996,-96.18712682,0.00035158,7]
[399585687,1766524280006,-150.0,0.00035174,7]
[399585688,1766524280016,-11.23127423,0.00035192,7]
[399585689,1766524280029,-138.76872577,0.00035192,7]
[399585690,1766524280039,-150.0,0.00035197,7]
[399585691,1766524280049,-6.00697554,0.000352,14]
[399585692,1766524280062,-345.30302446,0.000352,14]
[399585693,1766524280072,-150.0,0.00035202,7]
[399585694,1766524280082,-150.0,0.00035202,7]
[399585695,1766524280093,-150.0,0.0003526,7]
[399585696,1766524280110,-150.0,0.00035268,7]
[399585697,1766524280120,-150.0,0.00035274,7]
[399585698,1766524280130,-150.0,0.00035279,7]
[399585699,1766524280140,-1020.62,0.000353,30]
[399585700,1766524280149,-150.0,0.00035303,7]
[399585701,1766524280159,-150.0,0.00035303,7]
[399585702,1766524280170,-150.0,0.00035331,7]
[399585703,1766524280189,-150.0,0.00035338,7]
[399585704,1766524280207,-369.1,0.00035342,2]
[399585705,1766524280216,-150.0,0.00035342,2]
[399585706,1766524280227,-445.0,0.00035342,2]
[399585707,1766524280237,-150.0,0.00035346,7]
[399585708,1766524280247,-150.0,0.00035346,7]
[399585709,1766524280258,-150.0,0.00035346,7]
[399585710,1766524280267,-150.0,0.00035346,7]
[399585711,1766524280277,-484.51851004,0.0003538,120]
[399585712,1766524280287,-1510.19232095,0.000354,2]
[399585713,1766524280913,-2345.1357987,0.00015124,2]
[399585714,1766524280925,-763.82,0.00015124,2]
[399585715,1766524280949,-975.43176676,0.00015124,2]
[399585716,1766524280965,-475.3447729,0.00015124,2]
[399585717,1766524280978,-2510.22715754,0.00015124,2]
[399585718,1766524280987,-1397.03043568,0.00015225,2]
[399585719,1766524281003,-2165.5560001,0.00015225,2]
[399585720,1766524281015,-8805.00926908,0.00015225,2]
[399585721,1766524281026,-517.97784,0.00015225,2]
[399585722,1766524281038,-636.7772211,0.00015225,2]
[399585723,1766524281055,-569.93088227,0.00015225,2]
[399585794,1766524916161,-733.172,0.00014822,2]
[399585795,1766524916195,-250.0,0.00014972,2]
[399585796,1766524916228,-892.0,0.00015024,2]
[399585797,1766524916261,-1200.0,0.00015024,2]
[399585798,1766524916459,-534.386,0.00015025,2]
[399585799,1766524916501,-4171.43245369,0.00015025,2]
[399585800,1766524916526,-1657.14509262,0.00015025,2]
[399585801,1766524916767,-152.5128202,0.00015025,2]
[399585802,1766524916799,-300.0,0.00015122,2]
[399585803,1766524916830,-300.0,0.00015123,2]
[399585804,1766524916867,-500.0,0.00015124,2]
[399585805,1766524916904,-500.0,0.00015124,2]
[399585806,1766524916940,-500.0,0.00015124,2]
[399585807,1766524916977,-500.0,0.00015124,2]
[399585808,1766524917013,-500.0,0.00015124,2]
[399585809,1766524917049,-225.93122769,0.00015124,2]
[399585810,1766524917085,-500.0,0.00015124,2]
[399585811,1766524917120,-500.0,0.00015124,2]
[399585812,1766524917156,-500.0,0.00015124,2]
[399585813,1766524917270,-500.0,0.00015124,2]
[399585814,1766524917306,-500.0,0.00015124,2]
[399585815,1766524917341,-500.0,0.00015124,2]
[399585816,1766524917377,-500.0,0.00015124,2]
[399585817,1766524917412,-500.0,0.00015124,2]
[399585818,1766524917447,-500.0,0.00015124,2]
[399585819,1766524917482,-500.0,0.00015124,2]
[399585820,1766524917517,-500.0,0.00015124,2]
[399585821,1766524917556,-500.0,0.00015124,2]
[399585822,1766524917593,-500.0,0.00015124,2]
[399585823,1766524917848,-500.0,0.00015124,2]
[399585824,1766524917883,-500.0,0.00015124,2]
[399585825,1766524917919,-500.0,0.00015124,2]
[399585826,1766524917953,-500.0,0.00015124,2]
[399585827,1766524917989,-500.0,0.00015124,2]
[399585828,1766524918027,-500.0,0.00015124,2]
[399585829,1766524918065,-500.0,0.00015124,2]
[399585830,1766524918103,-500.0,0.00015124,2]
[399585831,1766524918142,-500.0,0.00015124,2]
[399585832,1766524918512,-500.0,0.00015124,2]
[399585833,1766524918703,-500.0,0.00015124,2]
[399585834,1766524918744,-500.0,0.00015124,2]
[399585835,1766524918782,-500.0,0.00015124,2]
[399585836,1766524918817,-381.71427298,0.00015124,2]
[399585837,1766524918852,-500.0,0.00015124,2]
[399585838,1766524918886,-381.71427298,0.00015124,2]
[399585839,1766524918916,-422.52277823,0.00015124,2]
[399585840,1766524918947,-210.31813509,0.00015124,2]
[399585841,1766524918982,-500.0,0.00015124,2]
[399585842,1766524919018,-351.76437129,0.00015124,2]
[399585843,1766524919050,-500.0,0.00015124,2]
[399585844,1766524919086,-3.94233886,0.00015124,2]
[399585845,1766524919126,-496.05766114,0.00015124,2]
[399585846,1766524919162,-351.76437129,0.00015124,2]
[399585847,1766524919198,-500.0,0.00015124,2]
[399585848,1766524919233,-351.76437129,0.00015124,2]
[399585849,1766524919265,-500.0,0.00015124,2]
[399585850,1766524919300,-500.0,0.00015124,2]
[399585851,1766524919335,-351.76437129,0.00015124,2]
[399585852,1766524919365,-500.0,0.00015124,2]
[399585853,1766524919398,-500.0,0.00015124,2]
[399585854,1766524919433,-351.76437129,0.00015124,2]
[399585855,1766524919466,-367.88,0.00015124,2]
[399585856,1766524919572,-656.5098894,0.00015125,2]
[399585857,1766524922549,-265.61679532,0.00015125,2]
[399585858,1766524923737,-187.24535868,0.00015125,2]
[399585859,1766524925324,-199.49149285,0.00015125,2]
[399585860,1766524929082,-185.52057249,0.00015125,2]
[399585861,1766524934148,-347.21792902,0.00015125,2]
[399585863,1766524937844,458.0197074,0.00015049,2]
[399585864,1766524937868,1809.0302926,0.00015049,2]
[399585865,1766524938083,-306.43591102,0.00015125,2]
[399585866,1766524941269,-301.17583776,0.00015125,2]
[399585867,1766524943155,-181.69705016,0.00015125,2]
[399585868,1766524946706,-208.39236359,0.00015125,2]
[399585869,1766524949020,-358.18860582,0.00015125,2]
[399585870,1766524950464,-289.88969832,0.00015125,2]
[399585871,1766524954129,-189.07088679,0.00015125,2]
[399585872,1766524957099,-605.95025083,0.00015125,2]
[399585873,1766524958582,-233.31876094,0.00015125,2]
[399585875,1766524967070,-425.68416417,0.00015125,2]
[399585876,1766524969615,-357.49856696,0.00015125,2]
[399585877,1766524973507,-264.55332962,0.00015125,2]
[399585878,1766524975945,-501.93541913,0.00015125,2]
[399585879,1766524979126,-264.84966531,0.00015125,2]
[399585880,1766524980639,270.21606607,0.00015124,2]
[399585881,1766524981476,300.0,0.00015124,2]
[399585882,1766524981719,-295.30179394,0.00015125,2]
[399585884,1766524984869,-159.0981943,0.00015125,2]
[399585885,1766524988881,308.0,0.00015124,2]
[399585886,1766524989373,-157.84203716,0.00015125,2]
[399585887,1766524992778,-189.07379348,0.00015125,2]
[399585888,1766524994236,-169.08991599,0.00015125,2]
[399585893,1766524997168,-272.15512232,0.00015125,2]
[399585894,1766524998663,-176.09007925,0.00015125,2]
[399585895,1766525000659,7312.76364133,0.00015025,2]
[399585896,1766525000683,971.20874787,0.00015025,2]
[399585902,1766525002304,-285.80535997,0.00015125,2]
[399585903,1766525004963,-350.2803979,0.00015125,2]
[399585904,1766525007505,-312.47431135,0.00015125,2]
[399585905,1766525007958,9028.80125213,0.00015124,2]
[399585906,1766525007983,5246.17339707,0.00015124,2]
[399585907,1766525010519,-296.59176829,0.00015125,2]
[399585908,1766525012460,-175.35137943,0.00015125,2]
[399585909,1766525013844,-291.99535568,0.00015125,2]
[399585910,1766525015926,-152.83,0.00015125,2]
[399585911,1766525018431,-219.09285113,0.00015125,2]
[399585912,1766525021860,2500.0,0.00015025,2]
[399585913,1766525024505,-162.64236034,0.00015125,2]
[399585914,1766525025847,2253.83660293,0.00015025,2]
[399585915,1766525025870,3472.83058874,0.00015025,2]
[399585916,1766525026469,-181.01732946,0.00015125,2]
[399585917,1766525028831,-168.800126,0.00015125,2]
[399585918,1766525030365,-184.66639574,0.00015125,2]
[399585919,1766525033021,-267.33747421,0.00015125,2]
[399585920,1766525038346,-183.40450248,0.00015125,2]
[399585921,1766525039819,-211.58368395,0.00015125,2]
[399585922,1766525042189,300.0,0.00015124,2]
[399585923,1766525042358,-233.0445807,0.00015125,2]